{"text_format":"3","workbook":"xlsx","n_sheets":4,"sheets":["ЦЕЛИ","ДИЕТА","УПРАЖНЕНИЯ","Изчисления на диаграмата"],"not_rendered":{"charts":2,"defined_names":19},"read":"whole","date_system":"1900"}

{"sheet":"ЦЕЛИ","index":0,"n_rows":16,"n_cols":11,"rows_kept":16,"merged":[[2,1,3,1],[7,1,8,1]]}
[null,{"$f":"TODAY()","v":"2017-05-09"},"ЦЕЛИ",{"$nulls":6},"Упражнения","Диета"]
[null,"НАЧАЛНА ДАТА","ДНЕВНИК ЗА ДИЕТА И УПРАЖНЕНИЯ"]
[null,{"$f":"НачалнаДата+121","v":"2017-09-07"},"АНАЛИЗ НА ДИЕТАТА"]
[]
[null,"КРАЙНА ДАТА"]
[null,{"v":100,"d":"100.00"}]
[null,"НАЧАЛНО ТЕГЛО"]
[null,{"v":80,"d":"80.00"},"АНАЛИЗ НА УПРАЖНЕНИЯТА"]
[]
[null,"КРАЙНО ТЕГЛО"]
[null,{"$f":"НачалноТегло-КрайноТегло","v":20}]
[null,"ЦЕЛЕВО НАМАЛЯВАНЕ"]
[null,{"$f":"КрайнаДата-НачалнаДата","v":121}]
[null,"ДНИ ЗА НАМАЛЯВАНЕТО"]
[null,{"$f":"ЦелТегло/B13","v":{"v":0.1652892561983471,"d":"0.17"}}]
[null,"НАМАЛЯВАНЕ НА ДЕН"]

{"sheet":"ДИЕТА","index":1,"n_rows":19,"n_cols":9,"rows_kept":19}
[null,"ДИЕТА",{"$nulls":4},"Цели","Упражнения"]
[null,{"$f":"Подзаглавие","v":"ДНЕВНИК ЗА ДИЕТА И УПРАЖНЕНИЯ"}]
[null,"ДАТА","ЧАС","ОПИСАНИЕ","КАЛОРИИ","ВЪГЛЕХИДРАТИ","БЕЛТЪЧИНИ","МАЗНИНИ","БЕЛЕЖКИ"]
[null,{"$f":"НачалнаДата","v":"2017-05-09"},"07:00:00","Кафе",1,0,0,0,"Сутрешно кафе"]
[null,{"$f":"НачалнаДата","v":"2017-05-09"},"08:00:00","Геврек",10,10,2,10,"Лека закуска"]
[null,{"$f":"НачалнаДата","v":"2017-05-09"},"12:00:00","Обяд",283,46,18,{"v":3.5,"d":"4"},"Сандвич с пуешко"]
[null,{"$f":"НачалнаДата","v":"2017-05-09"},"19:00:00","Вечеря",500,42,35,25,"Задушени картофи"]
[null,{"$f":"НачалнаДата+1","v":"2017-05-10"},"07:00:00","Кафе",1,0,0,0,"Сутрешно кафе"]
[null,{"$f":"НачалнаДата+1","v":"2017-05-10"},"08:00:00","Печена филия",10,10,2,10,"Лека закуска"]
[null,{"$f":"НачалнаДата+1","v":"2017-05-10"},"12:00:00","Обяд",189,26,3,8,"Сандвич"]
[null,{"$f":"НачалнаДата+1","v":"2017-05-10"},"19:00:00","Вечеря",477,62,{"v":13.5,"d":"14"},21,"Вечеря"]
[null,{"$f":"НачалнаДата+2","v":"2017-05-11"},"07:00:00","Кафе",1,0,0,0,"Сутрешно кафе"]
[null,{"$f":"НачалнаДата+2","v":"2017-05-11"},"08:00:00","Геврек",245,48,10,{"v":1.5,"d":"2"},"Лека закуска"]
[null,{"$f":"НачалнаДата+2","v":"2017-05-11"},"12:00:00","Обяд",247,11,43,5,"Салата"]
[null,{"$f":"НачалнаДата+2","v":"2017-05-11"},"19:00:00","Вечеря",456,64,32,22,"Вечеря"]
[null,{"$f":"НачалнаДата+3","v":"2017-05-12"},"07:00:00","Печена филия",10,10,2,10,"Лека закуска"]
[null,{"$f":"НачалнаДата+3","v":"2017-05-12"},"10:00:00","Кафе",135,{"v":12.36,"d":"12"},{"v":8.81,"d":"9"},{"v":5.51,"d":"6"},"Кафе с мляко"]
[null,{"$f":"НачалнаДата+3","v":"2017-05-12"},"12:15:00","Обяд",184,7,{"v":5.43,"d":"5"},15,"Салата"]
[null,{"$f":"НачалнаДата+5","v":"2017-05-14"},"19:00:00","Вечеря",477,62,{"v":13.5,"d":"14"},21,"Вечеря"]

{"sheet":"УПРАЖНЕНИЯ","index":2,"n_rows":20,"n_cols":7,"rows_kept":20}
[null,"УПРАЖНЕНИЯ",{"$nulls":3},"Диета","Цели"]
[null,{"$f":"Подзаглавие","v":"ДНЕВНИК ЗА ДИЕТА И УПРАЖНЕНИЯ"}]
[null,"ДАТА","ВРЕМЕТРАЕНЕ (МИН.)","ИЗГОРЕНИ КАЛОРИИ","БЕЛЕЖКИ"]
[null,{"$f":"НачалнаДата+4","v":"2017-05-13"},30,120,"Натоварване при тренировка"]
[null,{"$f":"B4+1","v":"2017-05-14"},60,180,"Аеробика с ниско въздействие"]
[null,{"$f":"B5+1","v":"2017-05-15"},60,350,"Екстремна тренировка"]
[null,"2017-05-16",30,150,"Натоварване при тренировка"]
[null,"2017-05-17",25,125,"Бягане"]
[null,"2017-05-18",20,285,"Натоварване при тренировка"]
[null,"2017-05-19",40,205,"Бягане"]
[null,"2017-05-20",30,335,"Бягане"]
[null,"2017-05-21",40,175,"Бягане"]
[null,"2017-05-22",45,325,"Натоварване при тренировка"]
[null,"2017-05-23",40,270,"Бягане"]
[null,"2017-05-24",20,295,"Натоварване при тренировка"]
[null,"2017-05-25",45,350,"Бягане"]
[null,"2017-05-26",35,320,"Бягане"]
[null,"2017-05-27",40,290,"Бягане"]
[null,{"$f":"B18+1","v":"2017-05-28"},25,265,"Натоварване при тренировка"]
[null,"2017-05-29",20,195,"Бягане"]

{"sheet":"Изчисления на диаграмата","index":3,"n_rows":36,"n_cols":10,"rows_kept":36,"hidden":true,"merged":[[1,1,1,9],[19,1,19,9]]}
[]
[null,"ДАННИ ЗА ДИАГРАМА НА АНАЛИЗ НА ДИЕТАТА"]
[]
[null,"Начален ред",{"$f":"ROW(Диета[[#Headers],[ДАТА]])+1","v":4},"ДАТА","ДЕН","МАЗНИНИ","БЕЛТЪЧИНИ","ВЪГЛЕХИДРАТИ","КАЛОРИИ","Цифри"]
[null,"Последен запис за диетата",{"$f":"MATCH(9.99E+307,Диета[ДАТА])+НачалоРедДиета-1","v":19},{"$f":"IFERROR(IF(INDEX(Диета[],КрайДиета-НачалоРедДиета-J5,1)<>\"\",INDEX(Диета[],КрайДиета-НачалоРедДиета-J5,1),\"\"),\"\")","v":"2017-05-09"},{"$f":"UPPER(TEXT(D5,\"DDD\"))","v":"ВТ"},{"$f":"IFERROR((IF(INDEX(Диета[],КрайДиета-НачалоРедДиета-J5,1)<>\"\",INDEX(Диета[],КрайДиета-НачалоРедДиета-J5,7),NA())),NA())","v":3.5},{"$f":"IFERROR((IF(INDEX(Диета[],КрайДиета-НачалоРедДиета-J5,1)<>\"\",INDEX(Диета[],КрайДиета-НачалоРедДиета-J5,6),NA())),NA())","v":18},{"$f":"IFERROR((IF(INDEX(Диета[],КрайДиета-НачалоРедДиета-J5,1)<>\"\",INDEX(Диета[],КрайДиета-НачалоРедДиета-J5,5),NA())),NA())","v":46},{"$f":"IFERROR((IF(INDEX(Диета[],КрайДиета-НачалоРедДиета-J5,1)<>\"\",INDEX(Диета[],КрайДиета-НачалоРедДиета-J5,4),NA())),NA())","v":283},12]
[{"$nulls":3},{"$f":"IFERROR(IF(INDEX(Диета[],КрайДиета-НачалоРедДиета-J6,1)<>\"\",INDEX(Диета[],КрайДиета-НачалоРедДиета-J6,1),\"\"),\"\")","v":"2017-05-09"},"ВТ",{"$f":"IFERROR((IF(INDEX(Диета[],КрайДиета-НачалоРедДиета-J6,1)<>\"\",INDEX(Диета[],КрайДиета-НачалоРедДиета-J6,7),NA())),NA())","v":25},{"$f":"IFERROR((IF(INDEX(Диета[],КрайДиета-НачалоРедДиета-J6,1)<>\"\",INDEX(Диета[],КрайДиета-НачалоРедДиета-J6,6),NA())),NA())","v":35},{"$f":"IFERROR((IF(INDEX(Диета[],КрайДиета-НачалоРедДиета-J6,1)<>\"\",INDEX(Диета[],КрайДиета-НачалоРедДиета-J6,5),NA())),NA())","v":42},{"$f":"IFERROR((IF(INDEX(Диета[],КрайДиета-НачалоРедДиета-J6,1)<>\"\",INDEX(Диета[],КрайДиета-НачалоРедДиета-J6,4),NA())),NA())","v":500},11]
[{"$nulls":3},{"$f":"IFERROR(IF(INDEX(Диета[],КрайДиета-НачалоРедДиета-J7,1)<>\"\",INDEX(Диета[],КрайДиета-НачалоРедДиета-J7,1),\"\"),\"\")","v":"2017-05-10"},"СР",{"$f":"IFERROR((IF(INDEX(Диета[],КрайДиета-НачалоРедДиета-J7,1)<>\"\",INDEX(Диета[],КрайДиета-НачалоРедДиета-J7,7),NA())),NA())","v":0},{"$f":"IFERROR((IF(INDEX(Диета[],КрайДиета-НачалоРедДиета-J7,1)<>\"\",INDEX(Диета[],КрайДиета-НачалоРедДиета-J7,6),NA())),NA())","v":0},{"$f":"IFERROR((IF(INDEX(Диета[],КрайДиета-НачалоРедДиета-J7,1)<>\"\",INDEX(Диета[],КрайДиета-НачалоРедДиета-J7,5),NA())),NA())","v":0},{"$f":"IFERROR((IF(INDEX(Диета[],КрайДиета-НачалоРедДиета-J7,1)<>\"\",INDEX(Диета[],КрайДиета-НачалоРедДиета-J7,4),NA())),NA())","v":1},10]
[{"$nulls":3},{"$f":"IFERROR(IF(INDEX(Диета[],КрайДиета-НачалоРедДиета-J8,1)<>\"\",INDEX(Диета[],КрайДиета-НачалоРедДиета-J8,1),\"\"),\"\")","v":"2017-05-10"},"СР",{"$f":"IFERROR((IF(INDEX(Диета[],КрайДиета-НачалоРедДиета-J8,1)<>\"\",INDEX(Диета[],КрайДиета-НачалоРедДиета-J8,7),NA())),NA())","v":10},{"$f":"IFERROR((IF(INDEX(Диета[],КрайДиета-НачалоРедДиета-J8,1)<>\"\",INDEX(Диета[],КрайДиета-НачалоРедДиета-J8,6),NA())),NA())","v":2},{"$f":"IFERROR((IF(INDEX(Диета[],КрайДиета-НачалоРедДиета-J8,1)<>\"\",INDEX(Диета[],КрайДиета-НачалоРедДиета-J8,5),NA())),NA())","v":10},{"$f":"IFERROR((IF(INDEX(Диета[],КрайДиета-НачалоРедДиета-J8,1)<>\"\",INDEX(Диета[],КрайДиета-НачалоРедДиета-J8,4),NA())),NA())","v":10},9]
[{"$nulls":3},{"$f":"IFERROR(IF(INDEX(Диета[],КрайДиета-НачалоРедДиета-J9,1)<>\"\",INDEX(Диета[],КрайДиета-НачалоРедДиета-J9,1),\"\"),\"\")","v":"2017-05-10"},"СР",{"$f":"IFERROR((IF(INDEX(Диета[],КрайДиета-НачалоРедДиета-J9,1)<>\"\",INDEX(Диета[],КрайДиета-НачалоРедДиета-J9,7),NA())),NA())","v":8},{"$f":"IFERROR((IF(INDEX(Диета[],КрайДиета-НачалоРедДиета-J9,1)<>\"\",INDEX(Диета[],КрайДиета-НачалоРедДиета-J9,6),NA())),NA())","v":3},{"$f":"IFERROR((IF(INDEX(Диета[],КрайДиета-НачалоРедДиета-J9,1)<>\"\",INDEX(Диета[],КрайДиета-НачалоРедДиета-J9,5),NA())),NA())","v":26},{"$f":"IFERROR((IF(INDEX(Диета[],КрайДиета-НачалоРедДиета-J9,1)<>\"\",INDEX(Диета[],КрайДиета-НачалоРедДиета-J9,4),NA())),NA())","v":189},8]
[{"$nulls":3},{"$f":"IFERROR(IF(INDEX(Диета[],КрайДиета-НачалоРедДиета-J10,1)<>\"\",INDEX(Диета[],КрайДиета-НачалоРедДиета-J10,1),\"\"),\"\")","v":"2017-05-10"},"СР",{"$f":"IFERROR((IF(INDEX(Диета[],КрайДиета-НачалоРедДиета-J10,1)<>\"\",INDEX(Диета[],КрайДиета-НачалоРедДиета-J10,7),NA())),NA())","v":21},{"$f":"IFERROR((IF(INDEX(Диета[],КрайДиета-НачалоРедДиета-J10,1)<>\"\",INDEX(Диета[],КрайДиета-НачалоРедДиета-J10,6),NA())),NA())","v":13.5},{"$f":"IFERROR((IF(INDEX(Диета[],КрайДиета-НачалоРедДиета-J10,1)<>\"\",INDEX(Диета[],КрайДиета-НачалоРедДиета-J10,5),NA())),NA())","v":62},{"$f":"IFERROR((IF(INDEX(Диета[],КрайДиета-НачалоРедДиета-J10,1)<>\"\",INDEX(Диета[],КрайДиета-НачалоРедДиета-J10,4),NA())),NA())","v":477},7]
[{"$nulls":3},{"$f":"IFERROR(IF(INDEX(Диета[],КрайДиета-НачалоРедДиета-J11,1)<>\"\",INDEX(Диета[],КрайДиета-НачалоРедДиета-J11,1),\"\"),\"\")","v":"2017-05-11"},"ЧЕТВ",{"$f":"IFERROR((IF(INDEX(Диета[],КрайДиета-НачалоРедДиета-J11,1)<>\"\",INDEX(Диета[],КрайДиета-НачалоРедДиета-J11,7),NA())),NA())","v":0},{"$f":"IFERROR((IF(INDEX(Диета[],КрайДиета-НачалоРедДиета-J11,1)<>\"\",INDEX(Диета[],КрайДиета-НачалоРедДиета-J11,6),NA())),NA())","v":0},{"$f":"IFERROR((IF(INDEX(Диета[],КрайДиета-НачалоРедДиета-J11,1)<>\"\",INDEX(Диета[],КрайДиета-НачалоРедДиета-J11,5),NA())),NA())","v":0},{"$f":"IFERROR((IF(INDEX(Диета[],КрайДиета-НачалоРедДиета-J11,1)<>\"\",INDEX(Диета[],КрайДиета-НачалоРедДиета-J11,4),NA())),NA())","v":1},6]
[{"$nulls":3},{"$f":"IFERROR(IF(INDEX(Диета[],КрайДиета-НачалоРедДиета-J12,1)<>\"\",INDEX(Диета[],КрайДиета-НачалоРедДиета-J12,1),\"\"),\"\")","v":"2017-05-11"},"ЧЕТВ",{"$f":"IFERROR((IF(INDEX(Диета[],КрайДиета-НачалоРедДиета-J12,1)<>\"\",INDEX(Диета[],КрайДиета-НачалоРедДиета-J12,7),NA())),NA())","v":1.5},{"$f":"IFERROR((IF(INDEX(Диета[],КрайДиета-НачалоРедДиета-J12,1)<>\"\",INDEX(Диета[],КрайДиета-НачалоРедДиета-J12,6),NA())),NA())","v":10},{"$f":"IFERROR((IF(INDEX(Диета[],КрайДиета-НачалоРедДиета-J12,1)<>\"\",INDEX(Диета[],КрайДиета-НачалоРедДиета-J12,5),NA())),NA())","v":48},{"$f":"IFERROR((IF(INDEX(Диета[],КрайДиета-НачалоРедДиета-J12,1)<>\"\",INDEX(Диета[],КрайДиета-НачалоРедДиета-J12,4),NA())),NA())","v":245},5]
[{"$nulls":3},{"$f":"IFERROR(IF(INDEX(Диета[],КрайДиета-НачалоРедДиета-J13,1)<>\"\",INDEX(Диета[],КрайДиета-НачалоРедДиета-J13,1),\"\"),\"\")","v":"2017-05-11"},"ЧЕТВ",{"$f":"IFERROR((IF(INDEX(Диета[],КрайДиета-НачалоРедДиета-J13,1)<>\"\",INDEX(Диета[],КрайДиета-НачалоРедДиета-J13,7),NA())),NA())","v":5},{"$f":"IFERROR((IF(INDEX(Диета[],КрайДиета-НачалоРедДиета-J13,1)<>\"\",INDEX(Диета[],КрайДиета-НачалоРедДиета-J13,6),NA())),NA())","v":43},{"$f":"IFERROR((IF(INDEX(Диета[],КрайДиета-НачалоРедДиета-J13,1)<>\"\",INDEX(Диета[],КрайДиета-НачалоРедДиета-J13,5),NA())),NA())","v":11},{"$f":"IFERROR((IF(INDEX(Диета[],КрайДиета-НачалоРедДиета-J13,1)<>\"\",INDEX(Диета[],КрайДиета-НачалоРедДиета-J13,4),NA())),NA())","v":247},4]
[{"$nulls":3},{"$f":"IFERROR(IF(INDEX(Диета[],КрайДиета-НачалоРедДиета-J14,1)<>\"\",INDEX(Диета[],КрайДиета-НачалоРедДиета-J14,1),\"\"),\"\")","v":"2017-05-11"},"ЧЕТВ",{"$f":"IFERROR((IF(INDEX(Диета[],КрайДиета-НачалоРедДиета-J14,1)<>\"\",INDEX(Диета[],КрайДиета-НачалоРедДиета-J14,7),NA())),NA())","v":22},{"$f":"IFERROR((IF(INDEX(Диета[],КрайДиета-НачалоРедДиета-J14,1)<>\"\",INDEX(Диета[],КрайДиета-НачалоРедДиета-J14,6),NA())),NA())","v":32},{"$f":"IFERROR((IF(INDEX(Диета[],КрайДиета-НачалоРедДиета-J14,1)<>\"\",INDEX(Диета[],КрайДиета-НачалоРедДиета-J14,5),NA())),NA())","v":64},{"$f":"IFERROR((IF(INDEX(Диета[],КрайДиета-НачалоРедДиета-J14,1)<>\"\",INDEX(Диета[],КрайДиета-НачалоРедДиета-J14,4),NA())),NA())","v":456},3]
[{"$nulls":3},{"$f":"IFERROR(IF(INDEX(Диета[],КрайДиета-НачалоРедДиета-J15,1)<>\"\",INDEX(Диета[],КрайДиета-НачалоРедДиета-J15,1),\"\"),\"\")","v":"2017-05-12"},"ПЕТ",{"$f":"IFERROR((IF(INDEX(Диета[],КрайДиета-НачалоРедДиета-J15,1)<>\"\",INDEX(Диета[],КрайДиета-НачалоРедДиета-J15,7),NA())),NA())","v":10},{"$f":"IFERROR((IF(INDEX(Диета[],КрайДиета-НачалоРедДиета-J15,1)<>\"\",INDEX(Диета[],КрайДиета-НачалоРедДиета-J15,6),NA())),NA())","v":2},{"$f":"IFERROR((IF(INDEX(Диета[],КрайДиета-НачалоРедДиета-J15,1)<>\"\",INDEX(Диета[],КрайДиета-НачалоРедДиета-J15,5),NA())),NA())","v":10},{"$f":"IFERROR((IF(INDEX(Диета[],КрайДиета-НачалоРедДиета-J15,1)<>\"\",INDEX(Диета[],КрайДиета-НачалоРедДиета-J15,4),NA())),NA())","v":10},2]
[{"$nulls":3},{"$f":"IFERROR(IF(INDEX(Диета[],КрайДиета-НачалоРедДиета-J16,1)<>\"\",INDEX(Диета[],КрайДиета-НачалоРедДиета-J16,1),\"\"),\"\")","v":"2017-05-12"},"ПЕТ",{"$f":"IFERROR((IF(INDEX(Диета[],КрайДиета-НачалоРедДиета-J16,1)<>\"\",INDEX(Диета[],КрайДиета-НачалоРедДиета-J16,7),NA())),NA())","v":5.51},{"$f":"IFERROR((IF(INDEX(Диета[],КрайДиета-НачалоРедДиета-J16,1)<>\"\",INDEX(Диета[],КрайДиета-НачалоРедДиета-J16,6),NA())),NA())","v":8.81},{"$f":"IFERROR((IF(INDEX(Диета[],КрайДиета-НачалоРедДиета-J16,1)<>\"\",INDEX(Диета[],КрайДиета-НачалоРедДиета-J16,5),NA())),NA())","v":12.36},{"$f":"IFERROR((IF(INDEX(Диета[],КрайДиета-НачалоРедДиета-J16,1)<>\"\",INDEX(Диета[],КрайДиета-НачалоРедДиета-J16,4),NA())),NA())","v":135},1]
[{"$nulls":3},{"$f":"IFERROR(IF(INDEX(Диета[],КрайДиета-НачалоРедДиета-J17,1)<>\"\",INDEX(Диета[],КрайДиета-НачалоРедДиета-J17,1),\"\"),\"\")","v":"2017-05-12"},"ПЕТ",{"$f":"IFERROR((IF(INDEX(Диета[],КрайДиета-НачалоРедДиета-J17,1)<>\"\",INDEX(Диета[],КрайДиета-НачалоРедДиета-J17,7),NA())),NA())","v":15},{"$f":"IFERROR((IF(INDEX(Диета[],КрайДиета-НачалоРедДиета-J17,1)<>\"\",INDEX(Диета[],КрайДиета-НачалоРедДиета-J17,6),NA())),NA())","v":5.43},{"$f":"IFERROR((IF(INDEX(Диета[],КрайДиета-НачалоРедДиета-J17,1)<>\"\",INDEX(Диета[],КрайДиета-НачалоРедДиета-J17,5),NA())),NA())","v":7},{"$f":"IFERROR((IF(INDEX(Диета[],КрайДиета-НачалоРедДиета-J17,1)<>\"\",INDEX(Диета[],КрайДиета-НачалоРедДиета-J17,4),NA())),NA())","v":184},0]
[{"$nulls":3},{"$f":"IFERROR(IF(INDEX(Диета[],КрайДиета-НачалоРедДиета-J18,1)<>\"\",INDEX(Диета[],КрайДиета-НачалоРедДиета-J18,1)),\"\")","v":"2017-05-14"},"НЕД",{"$f":"IFERROR((IF(INDEX(Диета[],КрайДиета-НачалоРедДиета-J18,1)<>\"\",INDEX(Диета[],КрайДиета-НачалоРедДиета-J18,7),NA())),NA())","v":21},{"$f":"IFERROR((IF(INDEX(Диета[],КрайДиета-НачалоРедДиета-J18,1)<>\"\",INDEX(Диета[],КрайДиета-НачалоРедДиета-J18,6),NA())),NA())","v":13.5},{"$f":"IFERROR((IF(INDEX(Диета[],КрайДиета-НачалоРедДиета-J18,1)<>\"\",INDEX(Диета[],КрайДиета-НачалоРедДиета-J18,5),NA())),NA())","v":62},{"$f":"IFERROR((IF(INDEX(Диета[],КрайДиета-НачалоРедДиета-J18,1)<>\"\",INDEX(Диета[],КрайДиета-НачалоРедДиета-J18,4),NA())),NA())","v":477},-1]
[]
[null,"ДАННИ ЗА ДИАГРАМА НА АНАЛИЗ НА УПРАЖНЕНИЯТА"]
[]
[null,"Начален ред",{"$f":"ROW(Упражнения[[#Headers],[ДАТА]])+1","v":4},"ДАТА","ДЕН","ВРЕМЕТРАЕНЕ (МИН.)","ИЗГОРЕНИ КАЛОРИИ","Цифри"]
[null,"Последен запис за упражненията",{"$f":"MATCH(9.99E+307,Упражнения[ДАТА])+НачалоРедУпражнения-1","v":20},{"$f":"IFERROR(IF(INDEX(Упражнения[],КрайУпражнения-НачалоРедУпражнения-H23,1)<>\"\",INDEX(Упражнения[],КрайУпражнения-НачалоРедУпражнения-H23,1)),\"\")","v":"2017-05-29"},{"$f":"UPPER(TEXT(D23,\"DDD\"))","v":"ПОН"},{"$f":"IFERROR((IF(INDEX(Упражнения[],КрайУпражнения-НачалоРедУпражнения-H23,1)<>\"\",INDEX(Упражнения[],КрайУпражнения-НачалоРедУпражнения-H23,2),0)),0)","v":20},{"$f":"IFERROR((IF(INDEX(Упражнения[],КрайУпражнения-НачалоРедУпражнения-H23,2)<>\"\",INDEX(Упражнения[],КрайУпражнения-НачалоРедУпражнения-H23,3),0)),0)","v":195},-1]
[{"$nulls":3},{"$f":"IFERROR(IF(INDEX(Упражнения[],КрайУпражнения-НачалоРедУпражнения-H24,1)<>\"\",INDEX(Упражнения[],КрайУпражнения-НачалоРедУпражнения-H24,1)),\"\")","v":"2017-05-28"},"НЕД",{"$f":"IFERROR((IF(INDEX(Упражнения[],КрайУпражнения-НачалоРедУпражнения-H24,1)<>\"\",INDEX(Упражнения[],КрайУпражнения-НачалоРедУпражнения-H24,2),0)),0)","v":25},{"$f":"IFERROR((IF(INDEX(Упражнения[],КрайУпражнения-НачалоРедУпражнения-H24,2)<>\"\",INDEX(Упражнения[],КрайУпражнения-НачалоРедУпражнения-H24,3),0)),0)","v":265},0]
[{"$nulls":3},{"$f":"IFERROR(IF(INDEX(Упражнения[],КрайУпражнения-НачалоРедУпражнения-H25,1)<>\"\",INDEX(Упражнения[],КрайУпражнения-НачалоРедУпражнения-H25,1)),\"\")","v":"2017-05-27"},"СЪБ",{"$f":"IFERROR((IF(INDEX(Упражнения[],КрайУпражнения-НачалоРедУпражнения-H25,1)<>\"\",INDEX(Упражнения[],КрайУпражнения-НачалоРедУпражнения-H25,2),0)),0)","v":40},{"$f":"IFERROR((IF(INDEX(Упражнения[],КрайУпражнения-НачалоРедУпражнения-H25,2)<>\"\",INDEX(Упражнения[],КрайУпражнения-НачалоРедУпражнения-H25,3),0)),0)","v":290},1]
[{"$nulls":3},{"$f":"IFERROR(IF(INDEX(Упражнения[],КрайУпражнения-НачалоРедУпражнения-H26,1)<>\"\",INDEX(Упражнения[],КрайУпражнения-НачалоРедУпражнения-H26,1)),\"\")","v":"2017-05-26"},"ПЕТ",{"$f":"IFERROR((IF(INDEX(Упражнения[],КрайУпражнения-НачалоРедУпражнения-H26,1)<>\"\",INDEX(Упражнения[],КрайУпражнения-НачалоРедУпражнения-H26,2),0)),0)","v":35},{"$f":"IFERROR((IF(INDEX(Упражнения[],КрайУпражнения-НачалоРедУпражнения-H26,2)<>\"\",INDEX(Упражнения[],КрайУпражнения-НачалоРедУпражнения-H26,3),0)),0)","v":320},2]
[{"$nulls":3},{"$f":"IFERROR(IF(INDEX(Упражнения[],КрайУпражнения-НачалоРедУпражнения-H27,1)<>\"\",INDEX(Упражнения[],КрайУпражнения-НачалоРедУпражнения-H27,1)),\"\")","v":"2017-05-25"},"ЧЕТВ",{"$f":"IFERROR((IF(INDEX(Упражнения[],КрайУпражнения-НачалоРедУпражнения-H27,1)<>\"\",INDEX(Упражнения[],КрайУпражнения-НачалоРедУпражнения-H27,2),0)),0)","v":45},{"$f":"IFERROR((IF(INDEX(Упражнения[],КрайУпражнения-НачалоРедУпражнения-H27,2)<>\"\",INDEX(Упражнения[],КрайУпражнения-НачалоРедУпражнения-H27,3),0)),0)","v":350},3]
[{"$nulls":3},{"$f":"IFERROR(IF(INDEX(Упражнения[],КрайУпражнения-НачалоРедУпражнения-H28,1)<>\"\",INDEX(Упражнения[],КрайУпражнения-НачалоРедУпражнения-H28,1)),\"\")","v":"2017-05-24"},"СР",{"$f":"IFERROR((IF(INDEX(Упражнения[],КрайУпражнения-НачалоРедУпражнения-H28,1)<>\"\",INDEX(Упражнения[],КрайУпражнения-НачалоРедУпражнения-H28,2),0)),0)","v":20},{"$f":"IFERROR((IF(INDEX(Упражнения[],КрайУпражнения-НачалоРедУпражнения-H28,2)<>\"\",INDEX(Упражнения[],КрайУпражнения-НачалоРедУпражнения-H28,3),0)),0)","v":295},4]
[{"$nulls":3},{"$f":"IFERROR(IF(INDEX(Упражнения[],КрайУпражнения-НачалоРедУпражнения-H29,1)<>\"\",INDEX(Упражнения[],КрайУпражнения-НачалоРедУпражнения-H29,1)),\"\")","v":"2017-05-23"},"ВТ",{"$f":"IFERROR((IF(INDEX(Упражнения[],КрайУпражнения-НачалоРедУпражнения-H29,1)<>\"\",INDEX(Упражнения[],КрайУпражнения-НачалоРедУпражнения-H29,2),0)),0)","v":40},{"$f":"IFERROR((IF(INDEX(Упражнения[],КрайУпражнения-НачалоРедУпражнения-H29,2)<>\"\",INDEX(Упражнения[],КрайУпражнения-НачалоРедУпражнения-H29,3),0)),0)","v":270},5]
[{"$nulls":3},{"$f":"IFERROR(IF(INDEX(Упражнения[],КрайУпражнения-НачалоРедУпражнения-H30,1)<>\"\",INDEX(Упражнения[],КрайУпражнения-НачалоРедУпражнения-H30,1)),\"\")","v":"2017-05-22"},"ПОН",{"$f":"IFERROR((IF(INDEX(Упражнения[],КрайУпражнения-НачалоРедУпражнения-H30,1)<>\"\",INDEX(Упражнения[],КрайУпражнения-НачалоРедУпражнения-H30,2),0)),0)","v":45},{"$f":"IFERROR((IF(INDEX(Упражнения[],КрайУпражнения-НачалоРедУпражнения-H30,2)<>\"\",INDEX(Упражнения[],КрайУпражнения-НачалоРедУпражнения-H30,3),0)),0)","v":325},6]
[{"$nulls":3},{"$f":"IFERROR(IF(INDEX(Упражнения[],КрайУпражнения-НачалоРедУпражнения-H31,1)<>\"\",INDEX(Упражнения[],КрайУпражнения-НачалоРедУпражнения-H31,1)),\"\")","v":"2017-05-21"},"НЕД",{"$f":"IFERROR((IF(INDEX(Упражнения[],КрайУпражнения-НачалоРедУпражнения-H31,1)<>\"\",INDEX(Упражнения[],КрайУпражнения-НачалоРедУпражнения-H31,2),0)),0)","v":40},{"$f":"IFERROR((IF(INDEX(Упражнения[],КрайУпражнения-НачалоРедУпражнения-H31,2)<>\"\",INDEX(Упражнения[],КрайУпражнения-НачалоРедУпражнения-H31,3),0)),0)","v":175},7]
[{"$nulls":3},{"$f":"IFERROR(IF(INDEX(Упражнения[],КрайУпражнения-НачалоРедУпражнения-H32,1)<>\"\",INDEX(Упражнения[],КрайУпражнения-НачалоРедУпражнения-H32,1)),\"\")","v":"2017-05-20"},"СЪБ",{"$f":"IFERROR((IF(INDEX(Упражнения[],КрайУпражнения-НачалоРедУпражнения-H32,1)<>\"\",INDEX(Упражнения[],КрайУпражнения-НачалоРедУпражнения-H32,2),0)),0)","v":30},{"$f":"IFERROR((IF(INDEX(Упражнения[],КрайУпражнения-НачалоРедУпражнения-H32,2)<>\"\",INDEX(Упражнения[],КрайУпражнения-НачалоРедУпражнения-H32,3),0)),0)","v":335},8]
[{"$nulls":3},{"$f":"IFERROR(IF(INDEX(Упражнения[],КрайУпражнения-НачалоРедУпражнения-H33,1)<>\"\",INDEX(Упражнения[],КрайУпражнения-НачалоРедУпражнения-H33,1)),\"\")","v":"2017-05-19"},"ПЕТ",{"$f":"IFERROR((IF(INDEX(Упражнения[],КрайУпражнения-НачалоРедУпражнения-H33,1)<>\"\",INDEX(Упражнения[],КрайУпражнения-НачалоРедУпражнения-H33,2),0)),0)","v":40},{"$f":"IFERROR((IF(INDEX(Упражнения[],КрайУпражнения-НачалоРедУпражнения-H33,2)<>\"\",INDEX(Упражнения[],КрайУпражнения-НачалоРедУпражнения-H33,3),0)),0)","v":205},9]
[{"$nulls":3},{"$f":"IFERROR(IF(INDEX(Упражнения[],КрайУпражнения-НачалоРедУпражнения-H34,1)<>\"\",INDEX(Упражнения[],КрайУпражнения-НачалоРедУпражнения-H34,1)),\"\")","v":"2017-05-18"},"ЧЕТВ",{"$f":"IFERROR((IF(INDEX(Упражнения[],КрайУпражнения-НачалоРедУпражнения-H34,1)<>\"\",INDEX(Упражнения[],КрайУпражнения-НачалоРедУпражнения-H34,2),0)),0)","v":20},{"$f":"IFERROR((IF(INDEX(Упражнения[],КрайУпражнения-НачалоРедУпражнения-H34,2)<>\"\",INDEX(Упражнения[],КрайУпражнения-НачалоРедУпражнения-H34,3),0)),0)","v":285},10]
[{"$nulls":3},{"$f":"IFERROR(IF(INDEX(Упражнения[],КрайУпражнения-НачалоРедУпражнения-H35,1)<>\"\",INDEX(Упражнения[],КрайУпражнения-НачалоРедУпражнения-H35,1)),\"\")","v":"2017-05-17"},"СР",{"$f":"IFERROR((IF(INDEX(Упражнения[],КрайУпражнения-НачалоРедУпражнения-H35,1)<>\"\",INDEX(Упражнения[],КрайУпражнения-НачалоРедУпражнения-H35,2),0)),0)","v":25},{"$f":"IFERROR((IF(INDEX(Упражнения[],КрайУпражнения-НачалоРедУпражнения-H35,2)<>\"\",INDEX(Упражнения[],КрайУпражнения-НачалоРедУпражнения-H35,3),0)),0)","v":125},11]
[{"$nulls":3},{"$f":"IFERROR(IF(INDEX(Упражнения[],КрайУпражнения-НачалоРедУпражнения-H36,1)<>\"\",INDEX(Упражнения[],КрайУпражнения-НачалоРедУпражнения-H36,1)),\"\")","v":"2017-05-16"},"ВТ",{"$f":"IFERROR((IF(INDEX(Упражнения[],КрайУпражнения-НачалоРедУпражнения-H36,1)<>\"\",INDEX(Упражнения[],КрайУпражнения-НачалоРедУпражнения-H36,2),0)),0)","v":30},{"$f":"IFERROR((IF(INDEX(Упражнения[],КрайУпражнения-НачалоРедУпражнения-H36,2)<>\"\",INDEX(Упражнения[],КрайУпражнения-НачалоРедУпражнения-H36,3),0)),0)","v":150},12]